[Event "FIDE World Cup O10-B 2024"]
[Site "Batumi"]
[Date "2024.06.26"]
[Round "4.9"]
[White "AlJamaat, Khaled"]
[Black "Kvaratskhelia, Giorgi"]
[Result "1-0"]
[ECO "D35"]
[WhiteElo "1644"]
[BlackElo "1548"]
[Annotator "NA RC"]
[PlyCount "149"]
[EventDate "2024.06.23"]
[EventType "swiss"]
[EventCountry "GEO"]
[SourceTitle "playchess.com"]
[Source "ChessBase"]
[SourceQuality "1"]
[TimeControl "5400+30"]

1. d4 {[%emt 0:00:17]} d5 {[%emt 0:00:12]} 2. c4 {[%emt 0:00:30]} e6 {[%emt 0:00:30]} 3. Nc3 {[%emt 0:00:30]} Nf6 {[%emt 0:00:30]} 4. Nf3 {[%emt 0:00:30]} Be7 {[%emt 0:00:30]} 5. Bg5 {[%emt 0:00:30]} O-O {[%emt 0:00:30]} 6. e3 {[%emt 0:00:30]} c6 {[%emt 0:00:30]} 7. cxd5 {[%emt 0:00:30]} exd5 {[%emt 0:00:30]} 8. Bd3 {[%emt 0:00:30]} h6 {[%emt 0:00:30]} 9. Bh4 {[%emt 0:00:30]} Bg4 {[%emt 0:00:30]} 10. O-O {[%emt 0:00:30]} Ne4 {[%emt 0:00:30]} 11. Bg3 {[%emt 0:00:30]} f5 {[%emt 0:00:30]} 12. Re1 {[%emt 0:00:30]} Nd7 {[%emt 0:00:30]} 13. Be2 {[%emt 0:00:30]} g5 {[%emt 0:00:30]} 14. h3 {[%emt 0:00:30]} Nxg3 {[%emt 0:00:30]} 15. fxg3 {[%emt 0:00:30]} Bh5 {[%emt 0:00:30]} 16. Nd2 {[%emt 0:00:30]} Bxe2 {[%emt 0:00:30]} 17. Qxe2 {[%emt 0:00:30]} Bd6 {[%emt 0:00:30]} 18. Qf3 {[%emt 0:00:30]} Qc7 {[%emt 0:00:30]} 19. Nf1 {[%emt 0:00:30]} Kg7 {[%emt 0:00:30]} 20. Rac1 {[%emt 0:00:30]} Qb6 {[%emt 0:00:30]} 21. Qe2 {[%emt 0:00:30]} Rae8 {[%emt 0:00:30]} 22. Qd3 {[%emt 0:00:30]} Ra8 {[%emt 0:47:28]} 23. Qe2 {[%emt 0:43:54]} Rae8 24. Qd3 Qd8 {[%emt 0:10:49]} 25. Re2 {[%emt 0:17:52]} Qb8 {[%emt 0:02:02]} 26. Rf2 f4 27. gxf4 {[%emt 0:03:37]} gxf4 28. e4 dxe4 29. Nxe4 {[%emt 0:00:51]} Nf6 30. Nfd2 {[%emt 0:00:54]} Nd5 31. Nxd6 Qxd6 {[%emt 0:07:20]} 32. Nc4 Qf6 33. Rcf1 Ne3 34. Rc1 Nxc4 {[%emt 0:07:51]} 35. Rxc4 Re3 {[%emt 0:22:18]} 36. Qd2 {[%emt 0:21:59]} Rg3 {[%emt 0:00:30]} 37. d5 {[%emt 0:01:59]} f3 {[%emt 0:00:00]} 38. Rg4+ {[%emt 0:00:17]} Rxg4 {[%emt 0:00:00]} 39. hxg4 {[%emt 0:00:04]} cxd5 {[%emt 0:00:00]} 40. Rxf3 {[%emt 0:00:35]} Qb6+ {[%emt 0:02:00]} 41. Kh1 {[%emt 0:08:11]} Rxf3 {[%emt 0:00:30]} 42. gxf3 {[%emt 0:00:00]} Qe6 {[%emt 0:00:30]} 43. Qd4+ {[%emt 0:01:00]} Kg6 {[%emt 0:00:30]} 44. Kg2 {[%emt 0:00:00]} Qe2+ {[%emt 0:00:00]} 45. Qf2 {[%emt 0:01:00]} Qxf2+ {[%emt 0:00:00]} 46. Kxf2 {[%emt 0:00:30]} Kg5 {[%emt 0:00:00]} 47. Kg3 {[%emt 0:00:00]} d4 {[%emt 0:00:00]} 48. f4+ {[%emt 0:00:00]} Kf6 {[%emt 0:00:00]} 49. Kf3 {[%emt 0:01:30]} Ke6 {[%emt 0:00:00]} 50. Ke4 {[%emt 0:00:30]} d3 {[%emt 0:00:00]} 51. Kxd3 {[%emt 0:00:00]} Kd5 {[%emt 0:00:00]} 52. Ke3 {[%emt 0:01:00]} b6 {[%emt 0:00:00]} 53. b3 {[%emt 0:00:30]} b5 {[%emt 0:05:00]} 54. b4 {[%emt 0:00:30]} a6 {[%emt 0:00:00]} 55. a3 {[%emt 0:00:30]} Kd6 {[%emt 0:00:00]} 56. Kd4 {[%emt 0:00:30]} Ke6 {[%emt 0:00:00]} 57. Kc5 {[%emt 0:00:00]} Kd7 {[%emt 0:02:00]} 58. Kb6 {[%emt 0:01:00]} Kd6 {[%emt 0:00:30]} 59. Kxa6 {[%emt 0:00:00]} Kd5 {[%emt 0:00:30]} 60. Kxb5 {[%emt 0:00:00]} Ke4 {[%emt 0:00:30]} 61. a4 {[%emt 0:00:00]} Kxf4 {[%emt 0:00:00]} 62. a5 {[%emt 0:00:00]} Kxg4 {[%emt 0:00:00]} 63. a6 {[%emt 0:00:00]} h5 {[%emt 0:01:30]} 64. a7 {[%emt 0:00:00]} h4 {[%emt 0:00:00]} 65. a8=Q {[%emt 0:00:00]} Kg3 {[%emt 0:01:00]} 66. Qh1 {[%emt 0:00:00]} h3 {[%emt 0:00:30]} 67. Kc4 {[%emt 0:00:00]} Kg4 {[%emt 0:00:30]} 68. b5 {[%emt 0:00:00]} Kg3 {[%emt 0:00:30]} 69. b6 Kg4 {[%emt 0:00:30]} 70. Qh2 {[%emt 0:00:00]} Kg5 {[%emt 0:00:30]} 71. Qxh3 {[%emt 0:00:00]} Kf6 {[%emt 0:00:30]} 72. b7 {[%emt 0:00:00]} Ke5 {[%emt 0:00:00]} 73. b8=Q+ {[%emt 0:00:00]} Kf6 {[%emt 0:00:00]} 74. Qf8+ {[%emt 0:00:00]} Ke5 {[%emt 0:00:00]} 75. Qe3# {[%emt 0:00:00]} 1-0

[Event "FIDE World Cup O10-B 2024"]
[Site "Batumi"]
[Date "2024.06.26"]
[Round "4.10"]
[White "Muhammad Shayan Noushad Ibrahi"]
[Black "Bergmann, Rafael Antonio"]
[Result "1/2-1/2"]
[ECO "C44"]
[WhiteElo "1785"]
[BlackElo "1743"]
[Annotator "NA RC"]
[PlyCount "72"]
[EventDate "2024.06.23"]
[EventType "swiss"]
[EventCountry "GEO"]
[SourceTitle "playchess.com"]
[Source "ChessBase"]
[SourceQuality "1"]
[TimeControl "5400+30"]

1. e4 {[%emt 0:02:03]} e5 {[%emt 0:01:46]} 2. Nf3 {[%emt 0:00:30]} Nc6 {[%emt 0:00:30]} 3. c3 {[%emt 0:00:30]} d6 {[%emt 0:00:30]} 4. d4 {[%emt 0:00:30]} Bg4 {[%emt 0:00:30]} 5. d5 {[%emt 0:00:30]} Nce7 {[%emt 0:00:30]} 6. Be2 {[%emt 0:00:30]} Nf6 {[%emt 0:00:30]} 7. Be3 {[%emt 0:00:30]} Qd7 {[%emt 0:00:30]} 8. Nbd2 {[%emt 0:00:30]} h6 {[%emt 0:00:30]} 9. Qb3 {[%emt 0:00:30]} c6 {[%emt 0:00:30]} 10. O-O-O {[%emt 0:00:30]} Qc7 {[%emt 0:00:30]} 11. dxc6 {[%emt 0:00:30]} bxc6 {[%emt 0:00:30]} 12. Qa4 {[%emt 0:00:30]} Bd7 {[%emt 0:00:30]} 13. Rhe1 {[%emt 0:00:30]} Rb8 {[%emt 0:00:30]} 14. Ba6 {[%emt 0:00:30]} d5 {[%emt 0:00:30]} 15. Bc5 {[%emt 0:00:30]} Ng6 {[%emt 0:00:30]} 16. Bxf8 {[%emt 0:00:30]} Kxf8 {[%emt 0:00:30]} 17. Qa3+ {[%emt 0:00:30]} Kg8 {[%emt 0:00:30]} 18. Qc5 {[%emt 0:00:30]} Rb6 {[%emt 0:00:30]} 19. Bf1 {[%emt 0:00:30]} Qb8 {[%emt 0:00:30]} 20. b3 {[%emt 0:00:30]} Bg4 {[%emt 0:00:30]} 21. exd5 {[%emt 0:00:30]} cxd5 {[%emt 0:00:30]} 22. h3 {[%emt 0:00:30]} Be6 {[%emt 0:00:30]} 23. g4 {[%emt 0:40:33]} Nd7 {[%emt 0:30:34]} 24. Qa5 {[%emt 0:01:17]} Rc6 {[%emt 0:04:37]} 25. Kb2 {[%emt 0:01:20]} Rc5 {[%emt 0:03:31]} 26. Qa6 {[%emt 0:02:18]} Qc7 {[%emt 0:00:31]} 27. Rc1 {[%emt 0:01:21]} Ra5 {[%emt 0:01:16]} 28. Qd3 {[%emt 0:01:07]} e4 {[%emt 0:01:35]} 29. Qc2 {[%emt 0:00:11]} exf3 {[%emt 0:00:24]} 30. b4 {[%emt 0:00:25]} Qb8 {[%emt 0:03:00]} 31. Ka1 {[%emt 0:02:01]} Rb5 {[%emt 0:01:33]} 32. Bxb5 {[%emt 0:43:24]} Qxb5 {[%emt 0:00:15]} 33. Nxf3 {[%emt 0:00:00]} Nf4 {[%emt 0:02:19]} 34. Nd4 {[%emt 0:00:00]} Qc4 {[%emt 0:02:35]} 35. Re3 {[%emt 0:00:00]} Ng2 {[%emt 0:01:12]} 36. Rg3 {[%emt 0:00:00]} Nf4 {[%emt 0:03:45]} 1/2-1/2

[Event "FIDE World Cup O10-B 2024"]
[Site "Batumi"]
[Date "2024.06.26"]
[Round "4.11"]
[White "Makhsatuly, Rakhim"]
[Black "Kiringoda, Thehas Rithmitha"]
[Result "1-0"]
[ECO "B15"]
[WhiteElo "1630"]
[BlackElo "1641"]
[Annotator "NA RC"]
[PlyCount "89"]
[EventDate "2024.06.23"]
[EventType "swiss"]
[EventCountry "GEO"]
[SourceTitle "playchess.com"]
[Source "ChessBase"]
[SourceQuality "1"]
[TimeControl "5400+30"]

1. e4 {[%emt 0:00:01]} c6 {[%emt 0:00:09]} 2. d4 {[%emt 0:00:30]} d5 {[%emt 0:00:30]} 3. Nc3 {[%emt 0:00:30]} dxe4 {[%emt 0:00:30]} 4. Nxe4 {[%emt 0:00:30]} Nf6 {[%emt 0:00:30]} 5. Nxf6+ {[%emt 0:00:30]} exf6 {[%emt 0:00:30]} 6. c3 {[%emt 0:00:30]} Bd6 {[%emt 0:00:30]} 7. Bd3 {[%emt 0:00:30]} O-O {[%emt 0:00:30]} 8. Qc2 {[%emt 0:00:30]} Re8+ {[%emt 0:00:30]} 9. Ne2 {[%emt 0:00:30]} h5 {[%emt 0:00:30]} 10. Be3 {[%emt 0:00:30]} Nd7 {[%emt 0:00:30]} 11. c4 {[%emt 0:00:30]} Nf8 {[%emt 0:00:30]} 12. O-O-O {[%emt 0:00:30]} Be6 {[%emt 0:00:30]} 13. a3 {[%emt 0:00:30]} Rc8 {[%emt 0:00:30]} 14. Nc3 {[%emt 0:00:30]} a6 {[%emt 0:00:30]} 15. Kb1 {[%emt 0:02:18]} Qc7 {[%emt 0:21:20]} 16. c5 {[%emt 0:08:10]} Be7 {[%emt 0:00:31]} 17. Be4 {[%emt 0:04:53]} Red8 {[%emt 0:04:50]} 18. g3 {[%emt 0:16:22]} Bd5 {[%emt 0:23:15]} 19. Na4 {[%emt 0:11:09]} Bxe4 {[%emt 0:00:24]} 20. Qxe4 {[%emt 0:04:26]} Re8 {[%emt 0:00:20]} 21. Qf3 {[%emt 0:02:37]} Qa5 {[%emt 0:06:14]} 22. Nb6 {[%emt 0:01:29]} Ne6 {[%emt 0:06:00]} 23. Nxc8 {[%emt 0:07:26]} Rxc8 {[%emt 0:00:00]} 24. Qxh5 {[%emt 0:03:13]} Nc7 {[%emt 0:00:17]} 25. Qf5 {[%emt 0:04:58]} Rd8 {[%emt 0:00:09]} 26. Qc2 {[%emt 0:02:58]} Nd5 {[%emt 0:00:38]} 27. Rhe1 {[%emt 0:00:40]} Qc7 {[%emt 0:00:53]} 28. Bf4 {[%emt 0:00:49]} Qd7 {[%emt 0:00:10]} 29. Qe4 {[%emt 0:00:49]} Bf8 {[%emt 0:00:12]} 30. h3 {[%emt 0:00:55]} b6 {[%emt 0:00:24]} 31. Rc1 {[%emt 0:01:42]} bxc5 {[%emt 0:00:10]} 32. dxc5 {[%emt 0:00:02]} g6 {[%emt 0:00:58]} 33. h4 {[%emt 0:00:49]} Bg7 {[%emt 0:00:19]} 34. Qc4 {[%emt 0:00:42]} Qb7 {[%emt 0:00:13]} 35. Re2 {[%emt 0:00:50]} a5 {[%emt 0:01:36]} 36. Rce1 {[%emt 0:00:36]} Qa8 {[%emt 0:00:43]} 37. h5 {[%emt 0:01:10]} g5 {[%emt 0:00:07]} 38. Bc1 {[%emt 0:00:18]} Rb8 {[%emt 0:00:15]} 39. Ka2 {[%emt 0:02:24]} Kh7 {[%emt 0:00:36]} 40. Be3 {[%emt 0:01:33]} Rd8 {[%emt 0:02:24]} 41. Bd4 {[%emt 0:00:28]} Qc8 {[%emt 0:01:23]} 42. h6 {[%emt 0:01:09]} Bh8 {[%emt 0:00:13]} 43. Re7 {[%emt 0:01:43]} Nxe7 {[%emt 0:01:11]} 44. Qxf7+ {[%emt 0:00:05]} Kxh6 {[%emt 0:00:36]} 45. Rh1+ {[%emt 0:00:06]} 1-0